Cogmind - Beta 15 *** ADVENTURER MODE // 2025.05.12 @ 11:14:43 Player: birb Result: Destroyed by P-70 Sage with Tesla Rifle Performance ------------- Evolutions (6) 3000 Regions Visited (13) 2600 Robots Destroyed (126) 630 Value Destroyed (4069) 4069 Prototype IDs (37) 740 Alien Tech Used (2) 400 Bonus (487) 487 TOTAL SCORE: 11926 Bonus ------- Follower Combat Kills 187 Met Zhirov 300 Cogmind --------- Core Integrity 0/1150 Matter 208/300 Energy 64/100 System Corruption 8% Temperature Cool (0) Movement Core (50) Location -4/Factory Parts ------- > --- POWER (2) -------- (None) > --- PROPULSION (7) --- (None) > --- UTILITY (7) ------ Advanced Melee Analysis Suite Advanced ECM Suite Hacking Suite Improved Hacking Suite System Shield > --- WEAPON (3) ------- (None) > --- INVENTORY (5) ---- Light Antimatter Reactor Peak State ------------ > --- POWER ------------ Light Antimatter Reactor Heavy Antimatter Reactor > --- PROPULSION ------- Cesium-ion Thruster Improved Cesium-ion Thruster Cooled VTOL Module Nuclear Pulse Array Impulse Thruster Array > --- UTILITY ---------- Experimental Heat Sink Improved Sensor Array Improved Signal Interpreter Advanced ECM Suite Improved Hacking Suite System Shield Makeshift System Shield > --- WEAPON ----------- Molecular Deconstructor Kinetic Spear > --- INVENTORY -------- Nuclear Pulse Array Smartbomb Launcher Kinetic Spear [Rating: 113] Favorites ----------- Power Light Nuclear Core Engine Light Ion Engine Power Core Light Nuclear Core Reactor Heavy Antimatter Reactor Propulsion Cesium-ion Thruster Wheel Compact Wheel Hover Unit Antigrav System Flight Unit Cesium-ion Thruster Utility Improved Signal Interpreter Device Advanced ECM Suite Storage Small Storage Unit Processor Improved Signal Interpreter Hackware System Shield Protection Hardened Light Armor Plating Weapon Minigun Energy Gun Improved Spread Laser Energy Cannon Cooled Plasma Cannon Ballistic Gun Minigun Ballistic Cannon Flak Cannon Launcher Precision Rocket Launcher Special Weapon Molecular Deconstructor Impact Weapon Power Maul Slashing Weapon Scythe Piercing Weapon Kinetic Spear Build | -11 -10 -9 -9 -8 -7 -7 -6 -5 -5 -5 -5 -4 -4 ------- Run | Yrd Mat Mat Min Mat Fac Sto Fac Fac Upp Upp Zhi Pro Fac Slots Evolved 12 | . . 2 . 2 2 . 2 2 . . . . 2 Power 1 | . . . . . . . . 1 . . . . . Propulsion 5 | . . 1 . 1 1 . 1 . . . . . 1 Utility 5 | . . 1 . 1 1 . 1 1 . . . . . Weapon 1 | . . . . . . . . . . . . . 1 Parts Attached 114 | 6 3 12 3 17 17 14 8 9 7 1 3 2 12 Power 22 | 1 . 3 2 3 2 2 1 1 3 . 1 . 3 Engine 8 | 1 . 3 2 1 . 1 . . . . . . . Core 11 | . . . . 2 2 1 1 1 3 . . . 1 Reactor 3 | . . . . . . . . . . . 1 . 2 Propulsion 27 | 2 2 4 . 3 4 4 2 2 . . . . 4 Treads . | . . . . . . . . . . . . . . Leg . | . . . . . . . . . . . . . . Wheel 4 | 2 2 . . . . . . . . . . . . Hover 2 | . . . . . . . . . . . . . 2 Flight 21 | . . 4 . 3 4 4 2 2 . . . . 2 Utility 43 | 1 1 2 1 8 7 4 4 4 2 1 2 1 5 Device 23 | . 1 . . 4 5 2 3 1 2 1 1 . 3 Storage 2 | 1 . . . . . . . . . . 1 . . Processor 8 | . . 1 . 4 . 1 . 1 . . . . 1 Hackware 6 | . . . . . 2 . 1 1 . . . 1 1 Protection 4 | . . 1 1 . . 1 . 1 . . . . . Artifact . | . . . . . . . . . . . . . . Weapon 22 | 2 . 3 . 3 4 4 1 2 2 . . 1 . Energy Gun 1 | . . . . . 1 . . . . . . . . Energy Cannon 1 | . . . . . . 1 . . . . . . . Ballistic Gun 9 | 2 . 3 . 2 2 . . . . . . . . Ballistic Cannon 2 | . . . . 1 . 1 . . . . . . . Launcher 3 | . . . . . . . 1 1 1 . . . . Special Weapon 1 | . . . . . . . . . . . . 1 . Impact Weapon 1 | . . . . . 1 . . . . . . . . Slashing Weapon 1 | . . . . . . 1 . . . . . . . Piercing Weapon 3 | . . . . . . 1 . 1 1 . . . . Special Melee Weapon . | . . . . . . . . . . . . . . Unidentified Prototypes 14 | . . . 1 . 2 4 1 2 . . 3 1 . Parts Lost 35 | . . 2 1 3 2 2 1 . 4 . . . 20 Power 5 | . . 1 . . . . . . 2 . . . 2 Propulsion 14 | . . 1 . 2 1 1 1 . . . . . 8 Utility 12 | . . . 1 1 1 1 . . 2 . . . 6 Weapon 4 | . . . . . . . . . . . . . 4 Highest Loss Streak 14 | . . 1 1 1 1 1 1 . 2 . . . 14 To Critical Strikes . | . . . . . . . . . . . . . . Average Backups 4 | . . 3 4 4 4 4 4 4 3 4 4 4 2 Power . | . . . . . . . . . . . . . . Propulsion 1 | . . . 1 1 . 2 2 2 2 2 2 1 . Utility . | . . . . . . . . . . . . . . Weapon 2 | . . 2 3 3 4 2 2 2 1 2 2 2 1 Tool/Special . | . . . . . . . . . . . . . . Unused Backups 9 | . . 2 1 . 2 2 1 1 . . . . . Power . | . . . . . . . . . . . . . . Propulsion 1 | . . . . . . . 1 . . . . . . Utility 1 | . . 1 . . . . . . . . . . . Weapon 7 | . . 1 1 . 2 2 . 1 . . . . . Tool/Special . | . . . . . . . . . . . . . . Average Slot Usage (%) 90 | . 91 94 100 96 94 99 96 87 80 82 82 78 75 Engine 2 | . 14 9 11 3 . . . . . . . . . Core 4 | . . . . 5 7 7 6 6 10 11 8 . . Reactor 1 | . . . . . . . . . . . 1 5 9 Wheel 2 | . 28 15 . . . . . . . . . . . Flight 27 | . . 17 33 35 32 38 36 28 23 23 23 23 21 Device 14 | . 5 11 11 16 16 10 16 18 16 17 18 19 11 Storage 1 | . 14 5 . . . . . . . . 1 . . Processor 8 | . . 5 11 14 15 15 6 5 5 5 5 5 6 Hackware 7 | . . . . . 5 7 13 11 11 11 11 14 14 Protection 2 | . . 7 11 1 . 3 2 3 . . . . . Energy Cannon 1 | . . . . . . 2 3 4 4 5 4 . . Ballistic Gun 7 | . 28 22 22 15 8 3 . . . . . . . Impact Weapon 1 | . . . . . . 6 6 4 . . . . . Piercing Weapon 1 | . . . . . . . . . 4 5 5 3 5 Peak Build Rating 113 | 6 7 23 22 32 47 54 63 85 85 85 89 93 113 Average Rating 53 | 4 6 16 21 28 35 51 59 74 80 81 83 88 95 On Entrance 47 | . 6 7 21 22 29 47 54 53 85 81 81 89 89 Naked Turns . | . . . . . . . . . . . . . . Heaviest Build 42 | 12 13 25 15 17 22 27 28 31 36 36 39 37 42 Greatest Support 45 | 26 26 26 15 19 32 27 33 37 40 36 39 37 45 Greatest Overweight (x) 3 | . . . . . 1 . . . . . 1 . 3 Average Overweight (x) . | . . . . . . . . . . . . . . Largest Inventory Capacity 8 | 8 8 8 5 5 5 5 5 5 5 5 5 5 5 Average Capacity 5 | 7 8 6 5 5 5 5 5 5 5 5 5 5 5 Most Carried 8 | . 2 8 5 5 5 5 5 5 5 5 5 5 5 Average Carried 4 | . . 4 4 4 4 4 4 4 4 5 5 4 3 Final Capacity 8 | 8 8 5 5 5 5 5 5 5 5 5 5 5 5 Final Carried 5 | . 2 4 5 4 5 5 5 5 5 5 5 5 1 Class Distribution -------------------- 40% | Hacker-Sprinter 20% | Sprinter 10% | Hacker-Ninja 9% | Mutant 5% | Commander-Sprinter 5% | Hacker-Mutant 4% | Hacker-Scout 3% | Hacker-Gladiator Dominant Class ---------------- Mutant | -10/Materials Sprinter | -9/Materials Sprinter | -9/Mines Sprinter | -8/Materials Hacker-Sprinter | -7/Factory Hacker-Sprinter | -7/Storage Hacker-Sprinter | -6/Factory Hacker-Sprinter | -5/Factory Hacker-Ninja | -5/Upper Caves Hacker-Ninja | -5/Upper Caves Hacker-Ninja | -5/Zhirov Hacker-Scout | -4/Proximity Caves Hacker-Sprinter | -4/Factory Resources | -11 -10 -9 -9 -8 -7 -7 -6 -5 -5 -5 -5 -4 -4 ----------- Run | Yrd Mat Mat Min Mat Fac Sto Fac Fac Upp Upp Zhi Pro Fac Matter Collected 2798 | 260 114 433 242 530 120 437 75 130 86 10 . 119 242 Remotely 764 | . 22 433 242 . . 67 . . . . . . . Salvage Created 4604 | . 250 754 231 812 206 905 178 350 361 73 . 50 434 Parts 212 | . 11 49 21 45 10 24 6 5 22 3 . 6 10 Haulers Intercepted 12 | . 1 3 . 3 . 3 . 1 . . . . 1 Recyclers Shooed 2 | . . . 1 . . 1 . . . . . . . Parts Field Recycled . | . . . . . . . . . . . . . . Retrieved Matter . | . . . . . . . . . . . . . . Parts Self-Destructed 19 | . . . . . . . . . 14 . . 5 . Prevented . | . . . . . . . . . . . . . . Kills | -11 -10 -9 -9 -8 -7 -7 -6 -5 -5 -5 -5 -4 -4 ------- Run | Yrd Mat Mat Min Mat Fac Sto Fac Fac Upp Upp Zhi Pro Fac Combat Hostiles Destroyed 94 | . 2 14 12 17 5 13 2 4 11 . . 5 9 Melee 12 | . . . . . . 7 2 . 1 . . 1 1 Guns 44 | . 2 14 12 14 2 . . . . . . . . Cannons 12 | . . . . 3 3 . . . 6 . . . . AOE 10 | . . . . . . . . . 4 . . 4 2 Classes Destroyed 14 | . 4 2 1 1 1 3 . . 1 . . . 1 Worker 6 | . . . . 1 . 2 1 1 . . . . 1 Builder 1 | . . . . . . 1 . . . . . . . Hauler 12 | . 1 3 . 3 . 3 . 1 . . . . 1 Recycler 1 | . 1 . . . . . . . . . . . . Minesweeper 1 | . . . . . . . . . 1 . . . . Mechanic 1 | . . . . . . . . . . . . . 1 Operator 2 | . . . . . . 2 . . . . . . . Watcher 7 | . 1 2 . 1 1 . . 1 . . . . 1 Swarmer 33 | . . 4 10 4 . . . . 10 . . 5 . Grunt 33 | . 2 5 1 8 3 9 1 3 . . . . 1 Duelist 2 | . . . 1 1 . . . . . . . . . Sentry 20 | . . 5 . 4 1 3 2 1 1 . . . 3 Hunter 5 | . . . . . . 1 . . . . . . 4 Programmer 2 | . . . . . 1 . . . . . . . 1 Decomposer 6 | . . . . . . . . . 3 3 . . . Best Kill Streak 8 | . 4 8 4 7 3 4 1 3 6 . . 5 4 Combat Bots Only 8 | . 1 8 4 5 3 4 1 2 6 . . 5 2 Max Kills in Single Turn 4 | . 1 2 1 2 1 1 1 1 4 1 . 3 2 Gunslinging 1 | . . 1 . . . . . . . . . . . Exploded 4 | . . . . . . . . . 4 . . 3 1 Melee 1 | . . . . . . 1 1 . 1 . . 1 1 Uniques/NPCs Destroyed . | . . . . . . . . . . . . . . Combat | -11 -10 -9 -9 -8 -7 -7 -6 -5 -5 -5 -5 -4 -4 -------- Run | Yrd Mat Mat Min Mat Fac Sto Fac Fac Upp Upp Zhi Pro Fac Hostile Shots Fired 699 | . 9 46 39 59 35 68 66 13 82 . . 8 274 Missed 301 | . 3 16 10 28 16 33 42 9 37 . . 8 99 Hits 398 | . 6 30 29 31 19 35 24 4 45 . . . 175 Projectile 398 | . 6 30 29 31 19 35 24 4 45 . . . 175 Critical Strikes 16 | . 1 1 . 1 . 1 1 . 1 . . . 10 Part Disruptions 1 | . . . . . . . . . . . . . 1 Damage Taken 4676 | . 73 319 181 341 144 320 176 69 577 . . . 2476 Core 1494 | . . 30 16 61 28 67 69 19 50 . . . 1154 Absorbed by Shields . | . . . . . . . . . . . . . . Ignored by Resistances 1352 | . 22 93 58 98 41 91 58 19 165 . . . 707 Regen/Repaired (Parts) 19 | . . . . . 19 . . . . . . . . Core Remaining (%) 91 | 100 100 . 88 88 . 86 91 . . . . 87 . Volleys Fired 200 | . 14 39 24 43 13 14 1 . 17 1 . 3 31 Largest 2 | . 2 2 2 2 2 1 1 . 1 1 . 1 1 Hottest 75 | . 40 50 50 62 62 75 35 . 46 35 . 46 46 Shots Fired 332 | . 28 78 48 86 25 14 1 . 17 1 . 3 31 Gun 250 | . 28 78 48 72 12 12 . . . . . . . Cannon 47 | . . . . 14 13 2 1 . 16 1 . . . Launcher 6 | . . . . . . . . . 1 . . 3 2 Special 29 | . . . . . . . . . . . . . 29 Kinetic 271 | . 28 78 48 86 25 6 . . . . . . . Thermal 26 | . . . . . . 8 1 . 16 1 . . . Explosive 6 | . . . . . . . . . 1 . . 3 2 Electromagnetic . | . . . . . . . . . . . . . . Robot Hit Streak 18 | . 10 18 10 17 18 3 4 . 8 . . . 7 Robot Miss Streak 4 | . 2 1 4 2 3 3 . . 2 . . . 2 Penetration Max . | . . . . . . . . . . . . . . Secondary Targets 6 | . . 2 3 1 . . . . . . . . . Max Gunslinging Chain 1 | . . 1 1 1 . . . . . . . . . Shots Hit Robots 321 | . 22 62 29 64 20 45 9 15 27 3 . 1 24 Core Hits 177 | . 8 24 13 49 25 16 3 1 14 3 . 4 17 Critical Kills 9 | . . 1 . 2 . 3 2 1 . . . . . Critical Parts Destroyed 7 | . . . . . 1 2 1 3 . . . . . Critical Strikes 16 | . . 1 . 2 1 5 3 4 . . . . . Destroy 4 | . . 1 . 2 1 . . . . . . . . Smash 12 | . . . . . . 5 3 4 . . . . . Melee Attacks 115 | . . . . . . 44 12 18 18 3 . 5 15 Impact 63 | . . . . . . 33 12 18 . . . . . Slashing 1 | . . . . . . 1 . . . . . . . Piercing 51 | . . . . . . 10 . . 18 3 . 5 15 Sneak Attacks 26 | . . . . . . 14 1 4 4 3 . . . Combat Hostiles 6 | . . . . . . 5 . 1 . . . . . Follow-up Attacks . | . . . . . . . . . . . . . . Damage Inflicted 10958 | . 271 1066 528 1288 486 2437 444 915 1681 239 . 508 1095 Guns 3193 | . 271 1066 528 930 242 156 . . . . . . . Cannons 1116 | . . . . 358 244 64 33 . 417 . . . . Explosions 1762 | . . . . . . . . . 405 . . 455 902 Melee 4887 | . . . . . . 2217 411 915 859 239 . 53 193 Ramming . | . . . . . . . . . . . . . . Kinetic 3682 | . 271 1066 528 1288 486 43 . . . . . . . Thermal 627 | . . . . . . 177 33 . 417 . . . . Explosive 1762 | . . . . . . . . . 405 . . 455 902 Electromagnetic . | . . . . . . . . . . . . . . Impact 3175 | . . . . . . 1849 411 915 . . . . . Slashing . | . . . . . . . . . . . . . . Piercing 1712 | . . . . . . 368 . . 859 239 . 53 193 Highest Corruption 8 | . . . . . . . . . . . . . 8 Average Corruption 2 | . . . . . . . . . . . . . 2 Corruption Purged . | . . . . . . . . . . . . . . Corruption Blocked . | . . . . . . . . . . . . . . Effects 1 | . . . . . . . . . . . . . 1 Matter Fused 1 | . . . . . . . . . . . . . 1 Overload Shots . | . . . . . . . . . . . . . . Overflow Damage 1370 | . . . . . . 701 99 287 246 . . 32 5 Projectiles 31 | . . . . . . 19 . . 12 . . . . Explosions 37 | . . . . . . . . . . . . 32 5 Melee 1302 | . . . . . . 682 99 287 234 . . . . Knockbacks 13 | . . . . 6 4 1 . 2 . . . . . Impact 3 | . . . . . . 1 . 2 . . . . . Kinetic 9 | . . . . 6 3 . . . . . . . . Secondary 1 | . . . . . 1 . . . . . . . . Self-Inflicted Damage 24 | . . . . . . . . . . . . . 24 Shots 1 | . . . . . . . . . . . . . 1 Rammed . | . . . . . . . . . . . . . . Targets Rammed . | . . . . . . . . . . . . . . Kicked . | . . . . . . . . . . . . . . Crushed . | . . . . . . . . . . . . . . Highest Temperature 269 | . 20 225 83 95 3 269 46 . 12 4 . . 37 Average Temperature 44 | . 6 71 33 24 2 44 19 . 7 4 . . 13 Received Heat Transfer 1148 | . 72 117 . 198 66 201 60 27 54 . . . 353 Siege Activations . | . . . . . . . . . . . . . . Martial Activations . | . . . . . . . . . . . . . . Shielding Activations . | . . . . . . . . . . . . . . Robots Disrupted . | . . . . . . . . . . . . . . Combat Hostiles . | . . . . . . . . . . . . . . Robots Corrupted 13 | . . . . . . 7 . 6 . . . . . Combat Hostiles 9 | . . . . . . 6 . 3 . . . . . Parts Fried 14 | . . . . . . 9 1 4 . . . . . Impact Corruptions 30 | . . . . . . 21 2 7 . . . . . Robots Melted . | . . . . . . . . . . . . . . Combat Hostiles . | . . . . . . . . . . . . . . Parts Melted . | . . . . . . . . . . . . . . Heat Transferred 895 | . . . . . . 195 50 . 650 . . . . Parts Sabotaged . | . . . . . . . . . . . . . . Parts Stolen . | . . . . . . . . . . . . . . Parts Stripped . | . . . . . . . . . . . . . . Power Chain Reactions . | . . . . . . . . . . . . . . Alert | -11 -10 -9 -9 -8 -7 -7 -6 -5 -5 -5 -5 -4 -4 ------- Run | Yrd Mat Mat Min Mat Fac Sto Fac Fac Upp Upp Zhi Pro Fac Maximum Alert Level 1 | . . 1 1 1 . 1 . . . . . . . Low Security (%) 90 | 100 100 78 35 85 100 97 100 100 . . . . 100 Level 1 9 | . . 21 64 14 . 2 . . . . . . . Level 2 . | . . . . . . . . . . . . . . Level 3 . | . . . . . . . . . . . . . . Level 4 . | . . . . . . . . . . . . . . Level 5 . | . . . . . . . . . . . . . . High Security . | . . . . . . . . . . . . . . Max Security . | . . . . . . . . . . . . . . Peak Influence 322 | . 40 322 282 272 105 200 129 103 . . . . 74 Initial 105 | . . . 103 79 105 . 62 . . . . . . Average 63 | . 12 71 210 131 16 111 29 43 . . . . 11 Influence Increases 3700 | . 113 494 349 673 238 578 304 234 245 . . 110 362 Destroy 0b10 Robot/C 2000 | . 40 280 260 360 100 280 100 80 220 . . 100 180 Destroy 0b10 Robot/NC 160 | . 15 25 . 25 5 40 10 15 5 . . . 20 Destroy Leader 498 | . 14 80 40 98 32 86 50 14 20 . . 10 54 Allied During Kill 52 | . . . 4 6 . 19 23 . . . . . . Successful Hack 218 | . 14 8 . 36 26 25 57 22 . . . . 30 Select Force Hacks 120 | . . . . 60 . . 30 30 . . . . . Disable Machine 45 | . . 9 . 9 . 18 . 9 . . . . . Destroy Structure 67 | . . 2 . 4 . 5 4 4 . . . . 48 Partial Spotted 345 | . . 15 15 60 60 75 30 60 . . . . 30 Lose Combat Pursuer 195 | . 30 75 30 15 15 30 . . . . . . . Influence Decreases 3700 | . 113 178 423 643 510 418 464 151 218 110 . 110 362 Entered New Map 710 | . . . 213 163 167 . 98 . 38 31 . . . Time Decay 2007 | . 113 168 200 200 141 338 186 119 140 79 . 110 213 Lost Part 249 | . . 10 10 30 10 20 . . 40 . . . 129 Lost Ally 350 | . . . . 100 . 60 180 10 . . . . . Purge Threat 384 | . . . . 150 192 . . 22 . . . . 20 Squads Dispatched 26 | . . . . 5 6 4 6 2 . . . . 3 Investigation 12 | . . . . 3 2 1 4 1 . . . . 1 Extermination 9 | . . . . . 3 2 1 1 . . . . 2 Reinforcement 5 | . . . . 2 1 1 1 . . . . . . Assault . | . . . . . . . . . . . . . . Garrison . | . . . . . . . . . . . . . . Intercept . | . . . . . . . . . . . . . . Searches Triggered . | . . . . . . . . . . . . . . Construction Impeded . | . . . . . . . . . . . . . . Haulers Reinforced . | . . . . . . . . . . . . . . Active Scanning Responses . | . . . . . . . . . . . . . . Cargo Convoy Interrupts 1 | . . . . . . . . . . . . . 1 Stealth | -11 -10 -9 -9 -8 -7 -7 -6 -5 -5 -5 -5 -4 -4 --------- Run | Yrd Mat Mat Min Mat Fac Sto Fac Fac Upp Upp Zhi Pro Fac Distress Signals 7 | . 1 . . 2 . . 3 . . . . . 1 Communications Jammed . | . . . . . . . . . . . . . . Distress Signals . | . . . . . . . . . . . . . . Times Spotted 161 | . 5 20 15 25 9 23 17 5 7 2 . 4 29 Peak Tracking Total 11 | . 4 4 4 7 3 6 8 2 5 4 . 3 11 Tactical Retreats 23 | . 1 3 1 1 1 5 3 . . 1 . 3 4 Traps | -11 -10 -9 -9 -8 -7 -7 -6 -5 -5 -5 -5 -4 -4 ------- Run | Yrd Mat Mat Min Mat Fac Sto Fac Fac Upp Upp Zhi Pro Fac Traps Triggered 2 | . . . . 1 . . . . . . . . 1 Indirectly . | . . . . . . . . . . . . . . Trap Hack Attempts . | . . . . . . . . . . . . . . Triggered . | . . . . . . . . . . . . . . Disarmed . | . . . . . . . . . . . . . . Reprogrammed . | . . . . . . . . . . . . . . Reused . | . . . . . . . . . . . . . . Traps Extracted . | . . . . . . . . . . . . . . Installed 2 | . . . . . . . . . 2 . . . . Triggered . | . . . . . . . . . . . . . . Machines | -11 -10 -9 -9 -8 -7 -7 -6 -5 -5 -5 -5 -4 -4 ---------- Run | Yrd Mat Mat Min Mat Fac Sto Fac Fac Upp Upp Zhi Pro Fac Machines Disabled 6 | . . 1 . 1 . 2 . 1 . . . 1 . Max in Single Turn 1 | . . 1 . 1 . 1 . 1 . . . 1 . Garrison Access 2 | . . . . 1 . . . 1 . . . . . Machines Repaired . | . . . . . . . . . . . . . . Machines Dismantled . | . . . . . . . . . . . . . . Machines Sabotaged . | . . . . . . . . . . . . . . Overloaded Fab Kills . | . . . . . . . . . . . . . . Hacking | -11 -10 -9 -9 -8 -7 -7 -6 -5 -5 -5 -5 -4 -4 --------- Run | Yrd Mat Mat Min Mat Fac Sto Fac Fac Upp Upp Zhi Pro Fac Machines Accessed 71 | . 4 5 . 9 8 10 9 4 . . 9 . 13 Terminals 41 | . 2 4 . 5 5 9 5 2 . . . . 9 Fabricators 4 | . . . . . 1 . 2 . . . . . 1 Repair Stations 2 | . . . . . 2 . . . . . . . . Recycling Units 10 | . 2 1 . 2 . 1 1 1 . . . . 2 Scanalyzers 2 | . . . . 1 . . . . . . . . 1 Garrison Access 3 | . . . . 1 . . 1 1 . . . . . Total Hacks 216 | . 12 9 . 21 24 19 26 9 . . 48 . 48 Successful 142 | . 7 7 . 12 12 8 13 5 . . 48 . 30 Failed 74 | . 5 2 . 9 12 11 13 4 . . . . 18 Catastrophic 9 | . . . . 2 2 1 1 1 . . . . 2 Database Lockouts . | . . . . . . . . . . . . . . Manual 44 | . 2 1 . 6 2 4 12 2 . . . 1 14 Terminals 123 | . 6 8 . 13 16 18 17 6 . . . . 39 Fabricators 10 | . . . . . 2 . 6 . . . . . 2 Repair Stations 6 | . . . . . 6 . . . . . . . . Recycling Units 17 | . 6 1 . 3 . 1 2 1 . . . . 3 Scanalyzers 7 | . . . . 3 . . . . . . . . 4 Garrison Access 5 | . . . . 2 . . 1 2 . . . . . Terminal Hacks 97 | . 2 6 . 4 5 7 4 2 . . 48 . 19 Record 39 | . . . . . . . . . . . 36 . 3 Part Schematic 4 | . . . . . . . . . . . 4 . . Robot Analysis 4 | . . . . . . . . . . . 4 . . Prototype ID Bank 13 | . 2 3 . . . 1 1 . . . 4 . 2 Open Door 2 | . . . . . . 2 . . . . . . . Branch Access Points 1 | . . . . . . . . . . . . . 1 Emergency Access Points 4 | . . . . 1 1 . . . . . . . 2 Machine Index 2 | . . . . . . 1 1 . . . . . . Recycling Unit Index 2 | . . . . 1 . . . . . . . . 1 Alert Level 2 | . . 1 . . . . . . . . . . 1 Unreport Threat 7 | . . . . 1 3 . . 2 . . . . 1 Locate Traps 2 | . . 2 . . . . . . . . . . . Dispatch Records 1 | . . . . . . . . . . . . . 1 Maintenance Status 1 | . . . . . . . . . . . . . 1 Security Status 1 | . . . . . . . . . . . . . 1 Recall Investigation 2 | . . . . . 1 . . . . . . . 1 Recall Extermination 2 | . . . . . . 1 . . . . . . 1 Hauler Manifests 1 | . . . . . . . . . . . . . 1 Registered Components 2 | . . . . . . 1 . . . . . . 1 Registered Prototypes 2 | . . . . 1 . 1 . . . . . . . Zone Layout 3 | . . . . . . . 2 . . . . . 1 Fabricator Hacks 8 | . . . . . 2 . 4 . . . . . 2 Load Schematic 4 | . . . . . 1 . 2 . . . . . 1 Build 4 | . . . . . 1 . 2 . . . . . 1 Repair Station Hacks 3 | . . . . . 3 . . . . . . . . Scan Component 2 | . . . . . 2 . . . . . . . . Repair 1 | . . . . . 1 . . . . . . . . Recycling Unit Hacks 6 | . 3 . . . . . . . . . . . 3 Report Inventory 3 | . 1 . . . . . . . . . . . 2 Retrieve Matter 1 | . 1 . . . . . . . . . . . . Retrieve Components 2 | . 1 . . . . . . . . . . . 1 Scanalyzer 5 | . . . . 3 . . . . . . . . 2 Insert Component 2 | . . . . 1 . . . . . . . . 1 Analyze 3 | . . . . 2 . . . . . . . . 1 Garrison Access Hacks 2 | . . . . 1 . . . 1 . . . . . Seal Access 2 | . . . . 1 . . . 1 . . . . . Unauthorized Hacks 21 | . 2 1 . 4 2 1 5 2 . . . . 4 Terminals 12 | . . . . 2 2 . 3 1 . . . . 4 Assimilate 12 | . . . . 2 2 . 3 1 . . . . 4 Fabricators . | . . . . . . . . . . . . . . Repair Stations . | . . . . . . . . . . . . . . Recycling Units 8 | . 2 1 . 2 . 1 1 1 . . . . . Reject 1 | . . . . . . 1 . . . . . . . Recyclers 3 | . 2 1 . . . . . . . . . . . Tunnel 4 | . . . . 2 . . 1 1 . . . . . Scanalyzers . | . . . . . . . . . . . . . . Garrison Access 1 | . . . . . . . 1 . . . . . . Reprogram 1 | . . . . . . . 1 . . . . . . Data Cores Recovered . | . . . . . . . . . . . . . . Used . | . . . . . . . . . . . . . . Hacking Detections 49 | . 3 4 . 4 8 8 8 2 . . . . 12 Full Trace Events 7 | . . . . 1 2 1 2 . . . . . 1 Feedback Events 1 | . . . . . 1 . . . . . . . . Hackware Fried 1 | . . . . . 1 . . . . . . . . Feedback Blocked . | . . . . . . . . . . . . . . Robot Schematics Acquired . | . . . . . . . . . . . . . . Robots Built . | . . . . . . . . . . . . . . Authchips . | . . . . . . . . . . . . . . Time . | . . . . . . . . . . . . . . Total Robot Build Rating . | . . . . . . . . . . . . . . Part Schematics Acquired 6 | . . . . 1 . . . . . . 4 . 1 Parts Built 7 | . . . . . 2 . 4 . . . . . 1 Authchips . | . . . . . . . . . . . . . . Time 303 | . . . . . 73 . 146 . . . . . 84 Total Part Build Rating 24 | . . . . . 6 . 12 . . . . . 6 Parts Repaired 1 | . . . . . 1 . . . . . . . . Time 19 | . . . . . 19 . . . . . . . . Parts Recycled . | . . . . . . . . . . . . . . Recycled Matter . | . . . . . . . . . . . . . . Retrieved Matter . | . . . . . . . . . . . . . . Retrieved Components 5 | . 1 . . . . . . . . . . . 4 Parts Scanalyzed 2 | . . . . 1 . . . . . . . . 1 Part Schematics Acquired 2 | . . . . 1 . . . . . . . . 1 Parts Damaged . | . . . . . . . . . . . . . . Bothacking | -11 -10 -9 -9 -8 -7 -7 -6 -5 -5 -5 -5 -4 -4 ------------ Run | Yrd Mat Mat Min Mat Fac Sto Fac Fac Upp Upp Zhi Pro Fac Used RIF Installer . | . . . . . . . . . . . . . . Robots Hacked . | . . . . . . . . . . . . . . Non-combat . | . . . . . . . . . . . . . . Combat . | . . . . . . . . . . . . . . Robot Hacks Applied . | . . . . . . . . . . . . . . Relay Couplers Released . | . . . . . . . . . . . . . . Fabnet Peak Effective % . | . . . . . . . . . . . . . . Robots Rewired . | . . . . . . . . . . . . . . Allies Hacked . | . . . . . . . . . . . . . . Hacks Repelled . | . . . . . . . . . . . . . . Allies | -11 -10 -9 -9 -8 -7 -7 -6 -5 -5 -5 -5 -4 -4 -------- Run | Yrd Mat Mat Min Mat Fac Sto Fac Fac Upp Upp Zhi Pro Fac Total Allies 20 | . . . 5 . 1 10 3 1 . . . . . Largest Group 10 | . . . 5 5 1 10 10 1 . . . . . Highest-Rated Group 209 | . . . 103 103 10 173 209 26 . . . . . Highest-Rated Ally 32 | . . . 32 32 10 29 29 26 . . . . . Total Orders 12 | . . . . . . 10 2 . . . . . . ROAM 2 | . . . . . . 1 1 . . . . . . GUARD 4 | . . . . . . 4 . . . . . . . AID 1 | . . . . . . . 1 . . . . . . EXPLORE 2 | . . . . . . 2 . . . . . . . RETURN 3 | . . . . . . 3 . . . . . . . Ally Attacks 83 | . . . 1 24 . 9 49 . . . . . . Total Damage 1021 | . . . 16 306 . 87 612 . . . . . . Kills 7 | . . . 1 1 . 1 4 . . . . . . Allies Corrupted . | . . . . . . . . . . . . . . Allies Melted . | . . . . . . . . . . . . . . Intel | -11 -10 -9 -9 -8 -7 -7 -6 -5 -5 -5 -5 -4 -4 ------- Run | Yrd Mat Mat Min Mat Fac Sto Fac Fac Upp Upp Zhi Pro Fac Active Infowar (turns) 1849 | . . . . 50 24 45 78 74 287 175 140 446 530 Optics 50 | . . . . 50 . . . . . . . . . Sensors 1552 | . . . . . . . . 74 287 175 140 446 430 Traps 913 | . . . . . . . . . 145 175 140 446 7 ECM 980 | . . . . . 24 45 78 . . 34 . 377 422 Robot Analysis Total 4 | . . . . . . . . . . . 4 . . Derelict Logs Recovered 3 | . . . 1 . . . . . . 1 . 1 . Drone Launches 5 | . . . . . . 5 . . . . . . . Drone Recoveries 4 | . . . . . . 4 . . . . . . . Exploration | -11 -10 -9 -9 -8 -7 -7 -6 -5 -5 -5 -5 -4 -4 ------------- Run | Yrd Mat Mat Min Mat Fac Sto Fac Fac Upp Upp Zhi Pro Fac Turns Passed 5899 | 41 300 510 407 417 914 696 547 269 287 175 140 446 750 Spaces Moved 8278 | 40 207 560 475 851 903 801 1028 579 619 393 318 559 945 Core 44 | 8 . . . . . . . . . . . . 36 Treads . | . . . . . . . . . . . . . . Legs . | . . . . . . . . . . . . . . Wheels 430 | 32 207 191 . . . . . . . . . . . Hover 7 | . . . . . . . . . . . . . 7 Flight 7797 | . . 369 475 851 903 801 1028 579 619 393 318 559 902 Fastest Speed 21 | 50 90 29 29 26 24 24 21 24 21 28 25 28 25 Average Speed 32 | 81 90 49 29 26 27 24 23 25 27 28 32 28 43 Slowest Speed 230 | 90 90 90 29 29 112 25 25 28 28 28 100 28 230 Overloaded Moves 18 | . . . . . . . . . 14 . 4 . . Propulsion Burnouts . | . . . . . . . . . . . . . . Robots Hopped 30 | . . . 5 15 5 . . 4 . . . . 1 Potential Cave-ins . | . . . . . . . . . . . . . . Cave-ins Triggered . | . . . . . . . . . . . . . . Teleports 1 | . . . . . . . . . . . 1 . . Exploration Rate (%) 44 | 4 32 36 87 54 28 76 25 11 64 61 62 63 22 Regions Visited 13 Branch Regions 6 Pre-discovered Areas 7 | . . . . 2 . . 1 1 . . 3 . . Known Exits Taken 9 | . . . . 1 1 1 1 1 1 1 1 1 . Unknown Exits Taken 4 | 1 1 1 1 . . . . . . . . . . Scrap Searched 5 | . . . 2 . . . . . . 1 . 2 . Spaces Dug 19 | . . . . . . 4 4 2 . . . 2 7 Terrain Destroyed 112 | . . . . . . 4 4 2 21 1 . 57 23 Melee 19 | . . . . . . 4 4 2 . . . 2 7 Projectile 4 | . . . . . . . . . 3 1 . . . AOE 89 | . . . . . . . . . 18 . . 55 16 Terrain Rammed . | . . . . . . . . . . . . . . Walls Destroyed . | . . . . . . . . . . . . . . Machines Disabled . | . . . . . . . . . . . . . . Actions | -11 -10 -9 -9 -8 -7 -7 -6 -5 -5 -5 -5 -4 -4 --------- Run | Yrd Mat Mat Min Mat Fac Sto Fac Fac Upp Upp Zhi Pro Fac Total 10944 | 45 291 724 701 955 1536 1203 1304 660 689 451 350 842 1193 Wait 2108 | . 66 92 196 49 585 310 245 38 18 53 21 257 178 Move 8212 | 39 206 559 464 826 892 800 1027 571 618 392 317 558 943 Hop 23 | . . . 5 9 5 . . 3 . . . . 1 Pick Up 47 | . 2 9 2 1 6 6 4 6 3 . . 6 2 Fast Attach 60 | 6 1 6 2 6 9 3 3 4 4 1 6 1 8 Attach 26 | . . 2 . 3 1 1 1 3 3 . . 4 8 Detach 5 | . . . . 1 . . . 1 . . . 1 2 Swap 63 | . 2 6 3 9 11 16 4 6 1 . 2 . 3 Drop 85 | . . 11 5 8 14 10 7 10 5 1 4 8 2 Fire 200 | . 14 39 24 43 13 14 1 . 17 1 . 3 31 Melee 113 | . . . . . . 43 12 18 18 3 . 4 15 Ram . | . . . . . . . . . . . . . . Kick . | . . . . . . . . . . . . . . Crush . | . . . . . . . . . . . . . . Escape Stasis . | . . . . . . . . . . . . . . Rewire . | . . . . . . . . . . . . . . Trap 2 | . . . . . . . . . 2 . . . . Miscellaneous . | . . . . . . . . . . . . . . Route ------- -11/Scrapyard -10/Materials -9/Materials -9/Mines (discovered 2 exits: *Mat x2) -8/Materials -7/Factory (discovered 2 exits: *Fac / *Sto) -7/Storage (discovered 2 exits: *Fac / Rec) -6/Factory -5/Factory -5/Upper Caves -5/Upper Caves (discovered 2 exits: Fac / *Zhi) -5/Zhirov -4/Proximity Caves -4/Factory (discovered 5 exits: Upp x2 / Ext x2 / Arm) History --------- Turn | Location | Event 19 | -11/Scrapyard | Discovered new exit (range 16) 42 | -11/Scrapyard | Entered Materials 278 | -10/Materials | Discovered new exit (range 12) 316 | -10/Materials | Build established: Mutant 342 | -10/Materials | Entered another Materials area 342 | -9/Materials | Evolved 2 slots: Propulsion x1, Utility x1 769 | -9/Materials | Destroyed 8 combat bots 838 | -9/Materials | Discovered new exit (range 15) 852 | -9/Materials | Entered Mines 856 | -9/Mines | Build established: Sprinter 881 | -9/Mines | Discovered new exit (range 9) 914 | -9/Mines | Found a damaged Exp. Sensor Array with a note attached 915 | -9/Mines | Found Prototype Device 915 | -9/Mines | Identified Exp. Sensor Array 1128 | -9/Mines | Assisted by bots powering up and referring to "LRC-V3" 1141 | -9/Mines | Discovered new exit (range 7) 1259 | -9/Mines | Entered Materials 1259 | -8/Materials | Accompanied by 5 allies 1259 | -8/Materials | Evolved 2 slots: Propulsion x1, Utility x1 1264 | -8/Materials | Led the pair of lost Derelicts to an unsafe place 1673 | -8/Materials | Discovered new exit (range 13) 1676 | -8/Materials | Identified exit to Factory 1676 | -8/Materials | Entered Factory 1676 | -7/Factory | Evolved 2 slots: Propulsion x1, Utility x1 1707 | -7/Factory | Repaired Cesium-ion Thruster 1792 | -7/Factory | Fabricated Cesium-ion Thruster? 2013 | -7/Factory | Build established: Hacker-Sprinter 2412 | -7/Factory | System Shield fried by hacking feedback 2474 | -7/Factory | Discovered new exit (range 5) 2475 | -7/Factory | Identified exit to Factory 2557 | -7/Factory | Discovered new exit (range 5) 2558 | -7/Factory | Identified exit to Storage 2590 | -7/Factory | Entered Storage 2590 | -7/Storage | Accompanied by 1 ally 2591 | -7/Storage | Identified exit to Recycling 3068 | -7/Storage | Assisted by bots powering up and referring to "LRC-V3" 3247 | -7/Storage | Discovered exit to Factory (range 16) 3286 | -7/Storage | Entered Factory 3286 | -6/Factory | Accompanied by 8 allies 3286 | -6/Factory | Evolved 2 slots: Propulsion x1, Utility x1 3325 | -6/Factory | Build established: Commander-Sprinter 3409 | -6/Factory | Fabricated Cesium-ion Thruster? 3444 | -6/Factory | Lost 4 allies 3711 | -6/Factory | Fabricated Cesium-ion Thruster? 3829 | -6/Factory | Spotted B-75 Beast 3833 | -6/Factory | Discovered new exit (range 4) 3833 | -6/Factory | Identified exit to Factory 3833 | -6/Factory | Entered another Factory area 3833 | -5/Factory | Evolved 2 slots: Power x1, Utility x1 3939 | -5/Factory | Discovered new exit (range 13) 3942 | -5/Factory | Identified exit to Upper Caves 4095 | -5/Factory | Build established: Hacker-Sprinter 4102 | -5/Factory | Entered Upper Caves 4131 | -5/Upper Caves | Attracted the attention of an 0b10 checkpoint 4379 | -5/Upper Caves | Discovered new exit (range 14) 4382 | -5/Upper Caves | Identified exit to Upper Caves 4389 | -5/Upper Caves | Entered another Upper Caves area 4390 | -5/Upper Caves | Encountered a Warlord checkpoint 4453 | -5/Upper Caves | Spotted B-75 Beast 4535 | -5/Upper Caves | Build established: Hacker-Ninja 4561 | -5/Upper Caves | Identified exit to Factory 4562 | -5/Upper Caves | Discovered new exit (range 6) 4563 | -5/Upper Caves | Identified exit to Zhirov 4564 | -5/Upper Caves | Entered Zhirov 4564 | -5/Zhirov | Discovered new exit (range 3) 4565 | -5/Zhirov | Identified exit to Proximity Caves 4570 | -5/Zhirov | Met Zhirov 4576 | -5/Zhirov | Learned location of Quarantine (-3) 4576 | -5/Zhirov | Learned location of Testing (-2) 4576 | -5/Zhirov | Learned location of Command (-1) 4581 | -5/Zhirov | Zhirov requested help retrieving the SGEMP Prototype 4605 | -5/Zhirov | Found Alien Artifact 4605 | -5/Zhirov | Identified Integrated Reactor 4605 | -5/Zhirov | Installed Integrated Reactor, increased core energy generation (+10) 4617 | -5/Zhirov | Found Alien Artifact 4617 | -5/Zhirov | Identified Transdimensional Reconstructor 4617 | -5/Zhirov | Warped through subspace 4704 | -5/Zhirov | Entered Proximity Caves 4712 | -4/Proximity Caves | Attracted the attention of an 0b10 checkpoint 4868 | -4/Proximity Caves | Acquired the password to a Derelict Tinkerer's latest research 4869 | -4/Proximity Caves | Found Prototype Special Weapon 4871 | -4/Proximity Caves | Identified Molecular Deconstructor 5025 | -4/Proximity Caves | Received a Behemoth hack from an annoying Tinkerer 5150 | -4/Proximity Caves | Entered Factory 5150 | -4/Factory | Evolved 2 slots: Propulsion x1, Weapon x1 5161 | -4/Factory | Identified exit to Upper Caves 5161 | -4/Factory | Identified exit to Extension 5161 | -4/Factory | Identified exit to Armory 5248 | -4/Factory | Fabricated Exp. Heat Sink (x1) 5438 | -4/Factory | Build established: Hacker-Sprinter 5851 | -4/Factory | Cargo convoy interrupted 5868 | -4/Factory | Core integrity fell below 50% 5875 | -4/Factory | Core integrity fell below 20% 5900 | -4/Factory | Destroyed by P-70 Sage with Tesla Rifle Last Messages --------------- 05877_ H-77 Assassin crushed by falling debris. 05877_ U-05 Engineer lays Concrete. 05877_ Slug penetrates Earth. 05877_ Slug penetrates Wall. 05877_ Slug penetrates Earth. 05877_ U-05 Engineer builds a Wall. 05878_ Penetrated by Slug. 05878_ Antigrav System destroyed. 05878_ Penetrated by Slug. 05878_ Kinetic Spear destroyed. 05878_ U-05 Engineer lays Concrete. 05879_ System corrupted: Matter fused (-8). 05879_ U-05 Engineer builds a Wall. 05880_ K-01 Serf collects debris. 05880_ U-05 Engineer lays Concrete. 05881_ Slug penetrates Wall. 05881_ U-05 Engineer lays Concrete. 05889_ K-01 Serf cleans the Matter Pump. 05894_ Acquired Hacking Suite. 05897_ Acquired Adv. ECM Suite. Map ----- +----------------------------------------------------+ | " #??????????????????????????????????????????????? | | " ########???????????????????????????????????????? | | # #???????????????????????????????????????? | | # """" #???????????????????????????????????????? | | # """" #???????????????????????????????????????? | | ### """" #???????????????????????????????????????? | | ??# """" #???????????????????????????????????????? | | ??# #???????????????????????????????????????? | | ??###+####???????????????????????????????????????? | | ????# #??????????????????????????????????????????? | | ????# #??????????????????????????????????????????? | | ##### #??????????????????????????????????????????? | | #??????????????????????????????????????????? | | #??????????????????????????????????????????? | | #??????????????????????????????????????????? | | #??????????????????????????????????????????? | | #??????????????????????????????????????????? | | #??????????????????????????????????????????? | | ^ #??????????????????????????????????????????? | | #??????????????????????????????????????????? | | % ##?????????????????????????????????????????? | | # ##############????????????????????????????? | | "# #????????????????????????????? | | ""# ! ########### #???########?????????????????? | | T#####?????????# #???# #?????????????????? | | ""#?????????????# #???#@ """#?????????????????? | | ""#?????????????# #???# """#?????????????????? | | ""#?????????????# #####p] """#????????!????????? | | #?????????????# p #?????????????????? | | #??????######?# #### #?????????????????? | | ####??????# # #######+###?????????????????? | | ??######### "S # #??????????????????? | | ??# # """ + #??????????????????? | | ??# // # "" # """ #??????????????????? | | ??# // # # """ #??????????????????? | | ??# #! ?# """ #??????????????????? | | ??# ######## ???????????????? | | ??# + ???????????????? | | ??# ########### ???????????????? | | ??# #???? ####? ???????????????? | | ??# #??? ? ????????????????? | | ??# #???! """??#######+####????????????????? | | ??# #??!! """ #???????? ??????????????????? | | ??# #??! """ +????????????????????????????? | | ??# ## #????????????????????????????? | | ??# ## #????????????????????????????? | | ??# # "" "" ?????????????????????????|???? | | ??# # ""S"" ?????????????????????????????? | | ??# * % # """" ??????????????????????????????? | | ??####/# # +####???????????????????????????????? | +----------------------------------------------------+ Best States ------------- Heat Dissipation 69 Energy Generation 51 Energy Capacity 875 Matter Stores 300 Matter Capacity 300 Sight Range 20 Robot Scan Range 15 Terrain Scan Density 10 ECM Strength 2 Additional Mass Support 9 Armor Coverage 225 Resistance: KI 20 Resistance: TH 20 Resistance: EX 20 Resistance: EM 20 Resistance: I 20 Resistance: S 20 Resistance: P 20 Phase Shifting 10 Evasion (%) 73 Targeting Accuracy 8 Melee Accuracy 8 Recoil Reduction 4 Particle Charging 30 Kinecelleration 30 Offensive Hacking 32 Defensive Hacking 21 Trap Extractor Capacity 6 Item Schematics ----------------- Cesium-ion Thruster | -8/Materials | Scanalyzed Assault Drone Bay | -5/Zhirov | Free Exp. Heat Sink | -5/Zhirov | Free Exp. Optical Array | -5/Zhirov | Free Imp. Arc Thrower | -5/Zhirov | Free Smartbomb Launcher | -4/Factory | Scanalyzed Robot Schematics ------------------ None Fabricated ------------ Cesium-ion Thruster | x2 | -7/Factory Cesium-ion Thruster | x2 | -6/Factory Cesium-ion Thruster | x2 | -6/Factory Exp. Heat Sink | x1 | -4/Factory Repaired ---------- Cesium-ion Thruster | 24% | -7/Factory Alien Tech Used ----------------- Integrated Reactor Transdimensional Reconstructor Achievements -------------- Alien Tech Armchair Analyst Deconstruction Origins Subspace Traveler The Science Guy Challenges ------------ None Game ------ Seed CoolantLauncherCompanion Manual? 0 Play Time 02:20:51 Cumulative 59.0 hours Start 2025.05.10 @ 12:26:56 End 2025.05.12 @ 11:14:43 Sessions 5 Manual Loads 0 Difficulty Adventurer Special Mode None Game No. 34 Rogue 0 Adventurer 34 Explorer 0 Win Type - Total 1 Types 1/0/0/0/0/0/0/0/0/0 Lore% 31 Gallery% 44 Achievement% 44 Wizard Run 0 Options --------- Layout 1 ASCII 0 Keyboard 0 Movement Mouse Keybinds 0 Fullscreen 1 Font 24/Smallcaps Map View 50x35 Zoom Use 0% Tactical HUD 1 Map Filters NONE Filters NONE Steam 1 RUN: 46e29b88-0873-4148-9c8e-bbb0b9a74026